[Event "Titled Tuesday Blitz December 27 Late 2022"]
[White "Toncheva, Nadya"]
[Black "Estrada Nieto, Julian"]
[WhiteFideId "2924056"]
[BlackFideId "5101018"]
[WhiteElo "2295"]
[BlackElo "2215"]
[Result "1-0"]
[Round "04"]
[TimeControl "180+2"]
[Date "2022.12.27"]
[WhiteClock "0:00:34"]
[BlackClock "0:01:09"]

1. d4 {[%clk 0:03:00]}  d5 {[%clk 0:03:00]} 2. c4 {[%clk 0:03:01]}  dxc4 {[%clk 0:03:01]} 3. e3 {[%clk 0:03:00]}  Nf6 {[%clk 0:03:01]} 4. Bxc4 {[%clk 0:03:00]}  e6 {[%clk 0:03:00]} 5. Nf3 {[%clk 0:03:00]}  a6 {[%clk 0:03:01]} 6. O-O {[%clk 0:03:00]}  b5 {[%clk 0:03:01]} 7. Bd3 {[%clk 0:02:52]}  Bb7 {[%clk 0:03:01]} 8. Re1 {[%clk 0:02:50]}  c5 {[%clk 0:02:59]} 9. e4 {[%clk 0:02:50]}  cxd4 {[%clk 0:02:57]} 10. e5 {[%clk 0:02:51]}  Nd5 {[%clk 0:02:51]} 11. Bg5 {[%clk 0:02:43]}  Be7 {[%clk 0:02:48]} 12. Bxe7 {[%clk 0:02:43]}  Qxe7 {[%clk 0:02:48]} 13. Nbd2 {[%clk 0:02:43]}  Nd7 {[%clk 0:02:46]} 14. Ne4 {[%clk 0:02:42]}  O-O {[%clk 0:02:46]} 15. Rc1 {[%clk 0:02:26]}  Nb4 {[%clk 0:02:34]} 16. Bb1 {[%clk 0:02:23]}  Bxe4 {[%clk 0:02:29]} 17. Rxe4 {[%clk 0:02:17]}  Rac8 {[%clk 0:02:23]} 18. Rh4 {[%clk 0:02:11]}  Rxc1 {[%clk 0:02:08]} 19. Bxh7+ {[%clk 0:02:09]}  Kh8 {[%clk 0:02:08]} 20. Qxc1 {[%clk 0:02:08]}  g5 {[%clk 0:02:06]} 21. Nxg5 {[%clk 0:02:01]}  Kg7 {[%clk 0:02:06]} 22. Be4 {[%clk 0:01:51]}  Rh8 {[%clk 0:01:52]} 23. Rxh8 {[%clk 0:01:50]}  Kxh8 {[%clk 0:01:52]} 24. Qf4 {[%clk 0:01:49]}  Nf8 {[%clk 0:01:45]} 25. Nxf7+ {[%clk 0:01:37]}  Kg7 {[%clk 0:01:45]} 26. Nd6 {[%clk 0:01:23]}  d3 {[%clk 0:01:22]} 27. Qg4+ {[%clk 0:01:21]}  Kh8 {[%clk 0:01:22]} 28. Qh3+ {[%clk 0:01:00]}  Nh7 {[%clk 0:01:21]} 29. Bxd3 {[%clk 0:00:57]}  Nxd3 {[%clk 0:01:12]} 30. Qxd3 {[%clk 0:00:57]}  Qc7 {[%clk 0:01:12]} 31. g3 {[%clk 0:00:46]}  Qc1+ {[%clk 0:01:08]} 32. Kg2 {[%clk 0:00:46]}  Qxb2 {[%clk 0:01:09]} 33. Qg6 {[%clk 0:00:34]} 1-0


[Site "https://www.chess.com"]

[Event "Titled Tuesday Blitz December 27 Late 2022"]
[White "Vaibhav Jayant Raut"]
[Black "Bok, Benjamin"]
[WhiteFideId "5089034"]
[BlackFideId "1017063"]
[WhiteElo "2237"]
[BlackElo "2607"]
[Result "1-0"]
[Round "04"]
[TimeControl "180+2"]
[Date "2022.12.27"]
[WhiteClock "0:00:07"]
[BlackClock "0:00:02"]

1. d4 {[%clk 0:03:00]}  Nf6 {[%clk 0:02:59]} 2. Bf4 {[%clk 0:03:00]}  d5 {[%clk 0:02:59]} 3. c3 {[%clk 0:03:00]}  c5 {[%clk 0:02:59]} 4. Nf3 {[%clk 0:02:54]}  Nc6 {[%clk 0:02:58]} 5. dxc5 {[%clk 0:02:49]}  a5 {[%clk 0:02:42]} 6. Nbd2 {[%clk 0:02:44]}  e6 {[%clk 0:02:39]} 7. e3 {[%clk 0:02:41]}  Bxc5 {[%clk 0:02:38]} 8. Bb5 {[%clk 0:02:40]}  O-O {[%clk 0:02:38]} 9. O-O {[%clk 0:02:40]}  Qe7 {[%clk 0:02:37]} 10. Nb3 {[%clk 0:02:26]}  Bb6 {[%clk 0:02:23]} 11. a4 {[%clk 0:02:03]}  e5 {[%clk 0:02:17]} 12. Bg5 {[%clk 0:02:00]}  Rd8 {[%clk 0:02:15]} 13. h3 {[%clk 0:01:58]}  h6 {[%clk 0:02:15]} 14. Bh4 {[%clk 0:01:57]}  Bf5 {[%clk 0:02:13]} 15. Bg3 {[%clk 0:01:52]}  Ne4 {[%clk 0:01:59]} 16. Bh2 {[%clk 0:01:49]}  f6 {[%clk 0:01:52]} 17. Nh4 {[%clk 0:01:47]}  Be6 {[%clk 0:01:51]} 18. Nd2 {[%clk 0:01:36]}  Nd6 {[%clk 0:01:38]} 19. Bd3 {[%clk 0:01:31]}  e4 {[%clk 0:01:24]} 20. Bc2 {[%clk 0:01:29]}  g5 {[%clk 0:01:24]} 21. Ng6 {[%clk 0:00:58]}  Qe8 {[%clk 0:00:59]} 22. Bxd6 {[%clk 0:00:45]}  Rxd6 {[%clk 0:00:59]} 23. Nxe4 {[%clk 0:00:43]}  dxe4 {[%clk 0:00:59]} 24. Qxd6 {[%clk 0:00:42]}  Rd8 {[%clk 0:00:59]} 25. Ne7+ {[%clk 0:00:27]}  Qxe7 {[%clk 0:00:50]} 26. Qxe7 {[%clk 0:00:27]}  Nxe7 {[%clk 0:00:51]} 27. Bxe4 {[%clk 0:00:26]}  Rd2 {[%clk 0:00:47]} 28. Bxb7 {[%clk 0:00:22]}  Rxb2 {[%clk 0:00:36]} 29. Rab1 {[%clk 0:00:22]}  Rxb1 {[%clk 0:00:36]} 30. Rxb1 {[%clk 0:00:23]}  Bc7 {[%clk 0:00:37]} 31. Bf3 {[%clk 0:00:16]}  Be5 {[%clk 0:00:31]} 32. Rc1 {[%clk 0:00:14]}  Bb3 {[%clk 0:00:26]} 33. Be2 {[%clk 0:00:08]}  Bxa4 {[%clk 0:00:17]} 34. Ra1 {[%clk 0:00:07]}  Bc2 {[%clk 0:00:10]} 35. Rxa5 {[%clk 0:00:06]}  Kf7 {[%clk 0:00:09]} 36. Bc4+ {[%clk 0:00:05]}  Ke8 {[%clk 0:00:08]} 37. Be6 {[%clk 0:00:03]}  Kd8 {[%clk 0:00:07]} 38. Ra7 {[%clk 0:00:03]}  Be4 {[%clk 0:00:06]} 39. Rd7+ {[%clk 0:00:03]}  Ke8 {[%clk 0:00:06]} 40. Ra7 {[%clk 0:00:03]}  Bxc3 {[%clk 0:00:05]} 41. f3 {[%clk 0:00:02]}  Bc6 {[%clk 0:00:05]} 42. Kf2 {[%clk 0:00:03]}  Be5 {[%clk 0:00:04]} 43. Ra6 {[%clk 0:00:03]}  Kf8 {[%clk 0:00:04]} 44. g3 {[%clk 0:00:03]}  Bd6 {[%clk 0:00:04]} 45. f4 {[%clk 0:00:03]}  gxf4 {[%clk 0:00:03]} 46. gxf4 {[%clk 0:00:04]}  f5 {[%clk 0:00:04]} 47. Bc4 {[%clk 0:00:04]}  Kg7 {[%clk 0:00:04]} 48. Bd3 {[%clk 0:00:04]}  Kf6 {[%clk 0:00:04]} 49. Rb6 {[%clk 0:00:04]}  Kf7 {[%clk 0:00:04]} 50. Bb5 {[%clk 0:00:04]}  Bxb5 {[%clk 0:00:03]} 51. Rxb5 {[%clk 0:00:05]}  Ke6 {[%clk 0:00:03]} 52. Kf3 {[%clk 0:00:05]}  Nd5 {[%clk 0:00:03]} 53. Rb1 {[%clk 0:00:06]}  Nc3 {[%clk 0:00:04]} 54. Rc1 {[%clk 0:00:06]}  Ne4 {[%clk 0:00:04]} 55. Rg1 {[%clk 0:00:06]}  Kf6 {[%clk 0:00:03]} 56. Rd1 {[%clk 0:00:07]}  Bc5 {[%clk 0:00:04]} 57. Rd5 {[%clk 0:00:07]}  Ke6 {[%clk 0:00:03]} 58. Re5+ {[%clk 0:00:07]}  Kf6 {[%clk 0:00:04]} 59. Rd5 {[%clk 0:00:07]}  h5 {[%clk 0:00:04]} 60. Rd1 {[%clk 0:00:06]}  h4 {[%clk 0:00:04]} 61. Ra1 {[%clk 0:00:05]}  Ke6 {[%clk 0:00:04]} 62. Ra6+ {[%clk 0:00:05]}  Bd6 {[%clk 0:00:04]} 63. Ra4 {[%clk 0:00:05]}  Nf6 {[%clk 0:00:03]} 64. Ra8 {[%clk 0:00:05]}  Be7 {[%clk 0:00:03]} 65. Rh8 {[%clk 0:00:05]}  Ne4 {[%clk 0:00:04]} 66. Rh6+ {[%clk 0:00:05]}  Bf6 {[%clk 0:00:04]} 67. Rh7 {[%clk 0:00:06]}  Nd2+ {[%clk 0:00:04]} 68. Ke2 {[%clk 0:00:06]}  Nc4 {[%clk 0:00:04]} 69. Kf3 {[%clk 0:00:06]}  Nd6 {[%clk 0:00:05]} 70. Rh6 {[%clk 0:00:06]}  Kf7 {[%clk 0:00:04]} 71. Rh7+ {[%clk 0:00:06]}  Kg6 {[%clk 0:00:04]} 72. Rd7 {[%clk 0:00:06]}  Ne4 {[%clk 0:00:05]} 73. Ra7 {[%clk 0:00:06]}  Nd2+ {[%clk 0:00:04]} 74. Ke2 {[%clk 0:00:06]}  Ne4 {[%clk 0:00:04]} 75. Kf3 {[%clk 0:00:07]}  Bg7 {[%clk 0:00:04]} 76. Ra6+ {[%clk 0:00:07]}  Bf6 {[%clk 0:00:04]} 77. Rb6 {[%clk 0:00:08]}  Nd2+ {[%clk 0:00:04]} 78. Ke2 {[%clk 0:00:08]}  Ne4 {[%clk 0:00:04]} 79. Ra6 {[%clk 0:00:08]}  Kf7 {[%clk 0:00:04]} 80. Kf3 {[%clk 0:00:08]}  Be7 {[%clk 0:00:04]} 81. Ra5 {[%clk 0:00:08]}  Ke6 {[%clk 0:00:04]} 82. Ra6+ {[%clk 0:00:09]}  Bd6 {[%clk 0:00:04]} 83. Ra5 {[%clk 0:00:09]}  Nf6 {[%clk 0:00:04]} 84. Ra6 {[%clk 0:00:09]}  Nd5 {[%clk 0:00:04]} 85. e4 {[%clk 0:00:08]}  fxe4+ {[%clk 0:00:04]} 86. Kxe4 {[%clk 0:00:09]}  Nf6+ {[%clk 0:00:04]} 87. Kf3 {[%clk 0:00:09]}  Ke7 {[%clk 0:00:02]} 88. f5 {[%clk 0:00:07]}  Bg3 {[%clk 0:00:03]} 89. Ra7+ {[%clk 0:00:07]}  Kd6 {[%clk 0:00:03]} 90. Ra5 {[%clk 0:00:07]}  Nd5 {[%clk 0:00:02]} 91. Kg4 {[%clk 0:00:07]}  Ne3+ {[%clk 0:00:02]} 92. Kg5 {[%clk 0:00:07]}  Ke7 {[%clk 0:00:03]} 93. Ra7+ {[%clk 0:00:07]}  Kd6 {[%clk 0:00:03]} 94. f6 {[%clk 0:00:07]}  Ke6 {[%clk 0:00:03]} 95. Re7+ {[%clk 0:00:06]}  Kd5 {[%clk 0:00:02]} 96. Rxe3 {[%clk 0:00:07]}  Bd6 {[%clk 0:00:02]} 97. f7 {[%clk 0:00:07]}  Bf8 {[%clk 0:00:02]} 98. Re8 {[%clk 0:00:07]} 1-0


[Site "https://www.chess.com"]

[Event "Titled Tuesday Blitz December 27 Late 2022"]
[White "Vega Gutierrez, Sabrina"]
[Black "Bach, Matthias"]
[WhiteFideId "2219026"]
[BlackFideId "4603168"]
[WhiteElo "2377"]
[BlackElo "2214"]
[Result "1-0"]
[Round "04"]
[TimeControl "180+2"]
[Date "2022.12.27"]
[WhiteClock "0:00:26"]
[BlackClock "0:00:01"]

1. e4 {[%clk 0:03:00]}  e5 {[%clk 0:02:56]} 2. Nf3 {[%clk 0:03:01]}  Nc6 {[%clk 0:02:57]} 3. Nc3 {[%clk 0:03:01]}  d6 {[%clk 0:02:51]} 4. g3 {[%clk 0:03:01]}  Be6 {[%clk 0:02:50]} 5. Bg2 {[%clk 0:03:00]}  Qd7 {[%clk 0:02:50]} 6. d4 {[%clk 0:02:57]}  Bc4 {[%clk 0:02:44]} 7. b3 {[%clk 0:02:54]}  Ba6 {[%clk 0:02:43]} 8. Be3 {[%clk 0:02:33]}  O-O-O {[%clk 0:02:40]} 9. Qd2 {[%clk 0:02:32]}  Nf6 {[%clk 0:02:33]} 10. h3 {[%clk 0:02:26]}  d5 {[%clk 0:02:28]} 11. exd5 {[%clk 0:01:24]}  Nxd5 {[%clk 0:01:42]} 12. Nxe5 {[%clk 0:00:58]}  Nxe5 {[%clk 0:01:33]} 13. Nxd5 {[%clk 0:00:58]}  Nc6 {[%clk 0:01:17]} 14. O-O-O {[%clk 0:00:57]}  Qd6 {[%clk 0:01:01]} 15. Kb1 {[%clk 0:00:56]}  Qa3 {[%clk 0:00:55]} 16. c3 {[%clk 0:00:52]}  Na5 {[%clk 0:00:43]} 17. Bf4 {[%clk 0:00:46]}  c6 {[%clk 0:00:28]} 18. Nc7 {[%clk 0:00:34]}  Bc4 {[%clk 0:00:12]} 19. bxc4 {[%clk 0:00:32]}  Nxc4 {[%clk 0:00:11]} 20. Qc2 {[%clk 0:00:32]}  Qa5 {[%clk 0:00:10]} 21. Qb3 {[%clk 0:00:32]}  b5 {[%clk 0:00:04]} 22. Bxc6 {[%clk 0:00:30]}  a6 {[%clk 0:00:01]} 23. Ka1 {[%clk 0:00:29]}  Bd6 {[%clk 0:00:01]} 24. Nd5 {[%clk 0:00:26]} 1-0


[Site "https://www.chess.com"]

[Event "Titled Tuesday Blitz December 27 Late 2022"]
[White "Aguilar, Juan"]
[Black "Rosenberg, Evan S"]
[WhiteFideId "3800091"]
[BlackFideId "2019299"]
[WhiteElo "2254"]
[BlackElo "1956"]
[Result "1-0"]
[Round "05"]
[TimeControl "180+2"]
[Date "2022.12.27"]
[WhiteClock "0:00:05"]
[BlackClock "0:00:01"]

1. g3 {[%clk 0:03:00]}  e5 {[%clk 0:02:57]} 2. Bg2 {[%clk 0:03:01]}  d5 {[%clk 0:02:53]} 3. d3 {[%clk 0:03:01]}  Nf6 {[%clk 0:02:30]} 4. a3 {[%clk 0:03:00]}  Nc6 {[%clk 0:02:29]} 5. b4 {[%clk 0:02:57]}  Bd6 {[%clk 0:02:21]} 6. Bb2 {[%clk 0:02:56]}  Be6 {[%clk 0:02:16]} 7. Nd2 {[%clk 0:02:56]}  Qd7 {[%clk 0:02:05]} 8. c4 {[%clk 0:02:52]}  a6 {[%clk 0:01:40]} 9. Ngf3 {[%clk 0:02:18]}  e4 {[%clk 0:01:37]} 10. Ng5 {[%clk 0:02:06]}  Be5 {[%clk 0:01:14]} 11. Bxe5 {[%clk 0:01:51]}  Nxe5 {[%clk 0:01:14]} 12. cxd5 {[%clk 0:01:41]}  Bxd5 {[%clk 0:01:07]} 13. Ngxe4 {[%clk 0:01:38]}  Nxe4 {[%clk 0:01:01]} 14. Nxe4 {[%clk 0:01:37]}  O-O {[%clk 0:00:50]} 15. O-O {[%clk 0:01:32]}  b6 {[%clk 0:00:43]} 16. Rc1 {[%clk 0:01:29]}  f5 {[%clk 0:00:42]} 17. Nc3 {[%clk 0:01:21]}  Bxg2 {[%clk 0:00:42]} 18. Kxg2 {[%clk 0:01:21]}  f4 {[%clk 0:00:42]} 19. Qb3+ {[%clk 0:01:18]}  Kh8 {[%clk 0:00:41]} 20. Qd5 {[%clk 0:01:13]}  Qxd5+ {[%clk 0:00:30]} 21. Nxd5 {[%clk 0:01:13]}  f3+ {[%clk 0:00:30]} 22. exf3 {[%clk 0:01:10]}  Rad8 {[%clk 0:00:27]} 23. Nxc7 {[%clk 0:01:02]}  Rxd3 {[%clk 0:00:27]} 24. f4 {[%clk 0:00:59]}  Ng4 {[%clk 0:00:20]} 25. h3 {[%clk 0:00:46]}  Nf6 {[%clk 0:00:20]} 26. Nxa6 {[%clk 0:00:38]}  Rxa3 {[%clk 0:00:19]} 27. Nc7 {[%clk 0:00:36]}  Ra2 {[%clk 0:00:19]} 28. Rfe1 {[%clk 0:00:13]}  h5 {[%clk 0:00:18]} 29. Kf3 {[%clk 0:00:13]}  h4 {[%clk 0:00:17]} 30. Re7 {[%clk 0:00:08]}  hxg3 {[%clk 0:00:14]} 31. fxg3 {[%clk 0:00:09]}  Nh7 {[%clk 0:00:13]} 32. Rd1 {[%clk 0:00:08]}  Ng5+ {[%clk 0:00:13]} 33. Kg4 {[%clk 0:00:08]}  Nf7 {[%clk 0:00:10]} 34. Rdd7 {[%clk 0:00:08]}  Nh6+ {[%clk 0:00:10]} 35. Kf3 {[%clk 0:00:06]}  Ra3+ {[%clk 0:00:09]} 36. Re3 {[%clk 0:00:06]}  Rxe3+ {[%clk 0:00:08]} 37. Kxe3 {[%clk 0:00:07]}  Nf5+ {[%clk 0:00:08]} 38. Kf3 {[%clk 0:00:07]}  Rc8 {[%clk 0:00:06]} 39. Ne6 {[%clk 0:00:07]}  Rc3+ {[%clk 0:00:06]} 40. Kg4 {[%clk 0:00:06]}  Nh6+ {[%clk 0:00:05]} 41. Kh4 {[%clk 0:00:05]}  Nf5+ {[%clk 0:00:04]} 42. Kg5 {[%clk 0:00:05]}  Nxg3 {[%clk 0:00:03]} 43. Rd8+ {[%clk 0:00:05]}  Kh7 {[%clk 0:00:03]} 44. Nf8+ {[%clk 0:00:06]}  Kg8 {[%clk 0:00:03]} 45. Ng6+ {[%clk 0:00:06]}  Kf7 {[%clk 0:00:03]} 46. f5 {[%clk 0:00:05]}  Ne4+ {[%clk 0:00:02]} 47. Kf4 {[%clk 0:00:06]}  Rc7 {[%clk 0:00:01]} 48. Rf8# {[%clk 0:00:05]} 1-0


[Site "https://www.chess.com"]

[Event "Titled Tuesday Blitz December 27 Late 2022"]
[White "Antonios, Johnny"]
[Black "Araujo, Everson De Moura"]
[WhiteFideId "5300843"]
[BlackFideId "22737197"]
[WhiteElo "2269"]
[BlackElo "1944"]
[Result "1-0"]
[Round "05"]
[TimeControl "180+2"]
[Date "2022.12.27"]
[WhiteClock "0:00:24"]
[BlackClock "0:00:01"]

1. e4 {[%clk 0:03:00]}  e6 {[%clk 0:02:53]} 2. d4 {[%clk 0:03:00]}  d5 {[%clk 0:02:54]} 3. Nd2 {[%clk 0:03:00]}  Nc6 {[%clk 0:02:52]} 4. Ngf3 {[%clk 0:02:59]}  Nf6 {[%clk 0:02:50]} 5. e5 {[%clk 0:03:00]}  Nd7 {[%clk 0:02:49]} 6. Nb3 {[%clk 0:03:01]}  f6 {[%clk 0:02:46]} 7. Bf4 {[%clk 0:02:58]}  Be7 {[%clk 0:02:30]} 8. exf6 {[%clk 0:02:47]}  Nxf6 {[%clk 0:02:29]} 9. Bb5 {[%clk 0:02:48]}  Bd6 {[%clk 0:02:29]} 10. Ne5 {[%clk 0:02:46]}  Bd7 {[%clk 0:02:25]} 11. Bxc6 {[%clk 0:02:41]}  Bxc6 {[%clk 0:02:26]} 12. Nxc6 {[%clk 0:02:39]}  bxc6 {[%clk 0:02:27]} 13. Be5 {[%clk 0:02:33]}  O-O {[%clk 0:02:23]} 14. O-O {[%clk 0:02:33]}  Rb8 {[%clk 0:02:08]} 15. Re1 {[%clk 0:02:31]}  Ne4 {[%clk 0:02:04]} 16. f3 {[%clk 0:02:31]}  Ng5 {[%clk 0:01:30]} 17. Qd2 {[%clk 0:02:17]}  Rxf3 {[%clk 0:00:57]} 18. h4 {[%clk 0:01:19]}  Ne4 {[%clk 0:00:14]} 19. Rxe4 {[%clk 0:01:16]}  Rfxb3 {[%clk 0:00:14]} 20. Rg4 {[%clk 0:01:01]}  Bxe5 {[%clk 0:00:11]} 21. axb3 {[%clk 0:01:01]}  Bf6 {[%clk 0:00:11]} 22. Rxa7 {[%clk 0:01:01]}  Bxh4 {[%clk 0:00:09]} 23. Qe2 {[%clk 0:00:58]}  Qe7 {[%clk 0:00:08]} 24. Ra6 {[%clk 0:00:45]}  Bf6 {[%clk 0:00:07]} 25. Rxc6 {[%clk 0:00:45]}  Re8 {[%clk 0:00:06]} 26. c3 {[%clk 0:00:43]}  Qd7 {[%clk 0:00:06]} 27. Rc5 {[%clk 0:00:42]}  Be7 {[%clk 0:00:05]} 28. Rb5 {[%clk 0:00:42]}  Bd6 {[%clk 0:00:05]} 29. Ra5 {[%clk 0:00:32]}  c6 {[%clk 0:00:05]} 30. Ra6 {[%clk 0:00:26]}  Qb7 {[%clk 0:00:02]} 31. b4 {[%clk 0:00:24]}  e5 {[%clk 0:00:01]} 32. Rg5 {[%clk 0:00:24]} 1-0


[Site "https://www.chess.com"]

[Event "Titled Tuesday Blitz December 27 Late 2022"]
[White "Antonova, Nadezhda"]
[Black "Melikhov, Evgeny V."]
[WhiteFideId "14700182"]
[BlackFideId "4122046"]
[WhiteElo "1945"]
[BlackElo "2269"]
[Result "0-1"]
[Round "05"]
[TimeControl "180+2"]
[Date "2022.12.27"]
[WhiteClock "0:00:07"]
[BlackClock "0:00:13"]

1. Nf3 {[%clk 0:02:22]}  f5 {[%clk 0:02:58]} 2. b3 {[%clk 0:02:22]}  Nf6 {[%clk 0:02:57]} 3. Bb2 {[%clk 0:02:23]}  g6 {[%clk 0:02:56]} 4. g3 {[%clk 0:02:21]}  Bg7 {[%clk 0:02:55]} 5. Bg2 {[%clk 0:02:22]}  O-O {[%clk 0:02:55]} 6. O-O {[%clk 0:02:22]}  d6 {[%clk 0:02:56]} 7. d4 {[%clk 0:02:21]}  c6 {[%clk 0:02:53]} 8. c4 {[%clk 0:02:21]}  a5 {[%clk 0:02:47]} 9. Nc3 {[%clk 0:02:20]}  Na6 {[%clk 0:02:46]} 10. Re1 {[%clk 0:02:17]}  Nc7 {[%clk 0:02:41]} 11. e4 {[%clk 0:02:15]}  fxe4 {[%clk 0:02:41]} 12. Nxe4 {[%clk 0:02:16]}  Nxe4 {[%clk 0:02:41]} 13. Rxe4 {[%clk 0:02:17]}  Bf5 {[%clk 0:02:40]} 14. Re1 {[%clk 0:02:16]}  Qd7 {[%clk 0:02:35]} 15. Qd2 {[%clk 0:02:10]}  Bh3 {[%clk 0:02:22]} 16. Bxh3 {[%clk 0:01:57]}  Qxh3 {[%clk 0:02:20]} 17. Rxe7 {[%clk 0:01:46]}  Rxf3 {[%clk 0:02:15]} 18. Rxc7 {[%clk 0:01:45]}  Raf8 {[%clk 0:02:14]} 19. Rf1 {[%clk 0:01:39]}  R8f5 {[%clk 0:01:44]} 20. d5 {[%clk 0:01:31]}  Rh5 {[%clk 0:01:13]} 21. Rxg7+ {[%clk 0:01:28]}  Kf8 {[%clk 0:01:12]} 22. Rd1 {[%clk 0:01:05]}  Qxh2+ {[%clk 0:01:08]} 23. Kf1 {[%clk 0:01:05]}  Qh1+ {[%clk 0:00:38]} 24. Ke2 {[%clk 0:01:05]}  Qg2 {[%clk 0:00:38]} 25. Rf1 {[%clk 0:00:45]}  Rhf5 {[%clk 0:00:32]} 26. Bd4 {[%clk 0:00:39]}  Rxg3 {[%clk 0:00:20]} 27. Qh6 {[%clk 0:00:26]}  Qe4+ {[%clk 0:00:16]} 28. Be3 {[%clk 0:00:23]}  Qc2+ {[%clk 0:00:15]} 29. Bd2 {[%clk 0:00:22]}  Re5+ {[%clk 0:00:13]} 30. Qe3 {[%clk 0:00:17]}  Rgxe3+ {[%clk 0:00:12]} 31. fxe3+ {[%clk 0:00:17]}  Kxg7 {[%clk 0:00:12]} 32. Rc1 {[%clk 0:00:16]}  Qe4 {[%clk 0:00:12]} 33. Rf1 {[%clk 0:00:15]}  Qg4+ {[%clk 0:00:10]} 34. Kd3 {[%clk 0:00:15]}  Kg8 {[%clk 0:00:09]} 35. Bc3 {[%clk 0:00:14]}  Rf5 {[%clk 0:00:09]} 36. Re1 {[%clk 0:00:13]}  Rf3 {[%clk 0:00:08]} 37. Kd2 {[%clk 0:00:14]}  Qf5 {[%clk 0:00:08]} 38. Re2 {[%clk 0:00:14]}  Rf2 {[%clk 0:00:08]} 39. Bd4 {[%clk 0:00:13]}  Rxe2+ {[%clk 0:00:08]} 40. Kxe2 {[%clk 0:00:14]}  Qe4 {[%clk 0:00:08]} 41. a4 {[%clk 0:00:13]}  h5 {[%clk 0:00:08]} 42. dxc6 {[%clk 0:00:13]}  bxc6 {[%clk 0:00:08]} 43. Bb6 {[%clk 0:00:14]}  Qc2+ {[%clk 0:00:08]} 44. Kf3 {[%clk 0:00:14]}  Qxb3 {[%clk 0:00:08]} 45. Bxa5 {[%clk 0:00:13]}  Qxa4 {[%clk 0:00:09]} 46. Bc7 {[%clk 0:00:13]}  Qxc4 {[%clk 0:00:09]} 47. Bxd6 {[%clk 0:00:13]}  Qd5+ {[%clk 0:00:09]} 48. e4 {[%clk 0:00:12]}  Qxd6 {[%clk 0:00:10]} 49. Ke3 {[%clk 0:00:10]}  c5 {[%clk 0:00:10]} 50. e5 {[%clk 0:00:08]}  Qd4+ {[%clk 0:00:09]} 51. Kf3 {[%clk 0:00:09]}  c4 {[%clk 0:00:10]} 52. e6 {[%clk 0:00:09]}  c3 {[%clk 0:00:10]} 53. e7 {[%clk 0:00:09]}  Kf7 {[%clk 0:00:10]} 54. e8=Q+ {[%clk 0:00:08]}  Kxe8 {[%clk 0:00:11]} 55. Kg3 {[%clk 0:00:08]}  c2 {[%clk 0:00:11]} 56. Kh2 {[%clk 0:00:08]}  c1=Q {[%clk 0:00:11]} 57. Kg3 {[%clk 0:00:08]}  Qcc3+ {[%clk 0:00:12]} 58. Kg2 {[%clk 0:00:07]}  Qdd2+ {[%clk 0:00:12]} 59. Kf1 {[%clk 0:00:07]}  Qcc1# {[%clk 0:00:13]} 0-1


[Site "https://www.chess.com"]

[Event "Titled Tuesday Blitz December 27 Late 2022"]
[White "Araujo Sanchez, Josue"]
[Black "Perez Ponsa, Federico"]
[WhiteFideId "6416896"]
[BlackFideId "117927"]
[WhiteElo "2303"]
[BlackElo "2532"]
[Result "0-1"]
[Round "05"]
[TimeControl "180+2"]
[Date "2022.12.27"]
[WhiteClock "0:00:22"]
[BlackClock "0:00:05"]

1. b3 {[%clk 0:02:59]}  e5 {[%clk 0:02:59]} 2. Bb2 {[%clk 0:03:00]}  Nc6 {[%clk 0:03:00]} 3. e3 {[%clk 0:03:00]}  d5 {[%clk 0:02:59]} 4. Bb5 {[%clk 0:03:00]}  Bd6 {[%clk 0:02:59]} 5. Nf3 {[%clk 0:03:00]}  Qe7 {[%clk 0:02:58]} 6. d4 {[%clk 0:03:00]}  e4 {[%clk 0:02:58]} 7. Ne5 {[%clk 0:03:00]}  Qg5 {[%clk 0:02:57]} 8. Kf1 {[%clk 0:02:47]}  Ne7 {[%clk 0:02:47]} 9. c4 {[%clk 0:02:45]}  a6 {[%clk 0:02:43]} 10. cxd5 {[%clk 0:02:39]}  axb5 {[%clk 0:02:37]} 11. dxc6 {[%clk 0:02:38]}  f6 {[%clk 0:02:28]} 12. h4 {[%clk 0:02:21]}  Qf5 {[%clk 0:02:15]} 13. Nd7 {[%clk 0:02:07]}  Nd5 {[%clk 0:01:54]} 14. Qe2 {[%clk 0:01:55]}  bxc6 {[%clk 0:01:45]} 15. Nc5 {[%clk 0:01:54]}  Bxc5 {[%clk 0:01:37]} 16. dxc5 {[%clk 0:01:54]}  b4 {[%clk 0:01:38]} 17. Kg1 {[%clk 0:01:53]}  Ba6 {[%clk 0:01:36]} 18. Qe1 {[%clk 0:01:52]}  O-O {[%clk 0:01:33]} 19. Nd2 {[%clk 0:01:48]}  Bd3 {[%clk 0:01:33]} 20. Nf1 {[%clk 0:01:46]}  Ra6 {[%clk 0:01:28]} 21. Ng3 {[%clk 0:01:40]}  Qg4 {[%clk 0:01:25]} 22. h5 {[%clk 0:01:40]}  h6 {[%clk 0:01:22]} 23. Bd4 {[%clk 0:01:34]}  f5 {[%clk 0:00:51]} 24. Rh3 {[%clk 0:01:34]}  f4 {[%clk 0:00:47]} 25. Nf1 {[%clk 0:01:30]}  Raa8 {[%clk 0:00:25]} 26. exf4 {[%clk 0:01:19]}  Nxf4 {[%clk 0:00:17]} 27. Rg3 {[%clk 0:01:19]}  Ne2+ {[%clk 0:00:16]} 28. Qxe2 {[%clk 0:01:16]}  Bxe2 {[%clk 0:00:16]} 29. Rxg4 {[%clk 0:01:11]}  Bxg4 {[%clk 0:00:16]} 30. Ng3 {[%clk 0:01:08]}  Rad8 {[%clk 0:00:13]} 31. Be5 {[%clk 0:01:07]}  Rd1+ {[%clk 0:00:12]} 32. Rxd1 {[%clk 0:01:05]}  Bxd1 {[%clk 0:00:13]} 33. Bxc7 {[%clk 0:01:02]}  Ra8 {[%clk 0:00:14]} 34. Nxe4 {[%clk 0:00:58]}  Rxa2 {[%clk 0:00:13]} 35. Bf4 {[%clk 0:00:47]}  Bxb3 {[%clk 0:00:12]} 36. Nd2 {[%clk 0:00:47]}  Bd5 {[%clk 0:00:11]} 37. Kh2 {[%clk 0:00:42]}  b3 {[%clk 0:00:11]} 38. Nb1 {[%clk 0:00:31]}  Rxf2 {[%clk 0:00:09]} 39. Kg3 {[%clk 0:00:30]}  Rf1 {[%clk 0:00:07]} 40. Nd2 {[%clk 0:00:27]}  b2 {[%clk 0:00:08]} 41. Nxf1 {[%clk 0:00:26]}  b1=Q {[%clk 0:00:08]} 42. Ne3 {[%clk 0:00:27]}  Qe4 {[%clk 0:00:09]} 43. Kg4 {[%clk 0:00:26]}  Be6+ {[%clk 0:00:07]} 44. Kg3 {[%clk 0:00:25]}  Kh7 {[%clk 0:00:07]} 45. Nf1 {[%clk 0:00:23]}  Bc4 {[%clk 0:00:03]} 46. Ne3 {[%clk 0:00:24]}  Bd3 {[%clk 0:00:03]} 47. Kg4 {[%clk 0:00:23]}  Be2+ {[%clk 0:00:04]} 48. Kg3 {[%clk 0:00:23]}  Bxh5 {[%clk 0:00:04]} 49. Nf1 {[%clk 0:00:23]}  Be2 {[%clk 0:00:05]} 50. Ne3 {[%clk 0:00:22]}  g5 {[%clk 0:00:05]} 0-1


[Site "https://www.chess.com"]